fUSD/lending_fUSD_20250217
["ID","MTS","AMOUNT","RATE_DAILY","PERIOD"]
[353371534,1739801488882,-500.0,0.00014109,2]
[353371535,1739801488894,-1792.75,0.00014109,2]
[353371536,1739801488907,-500.0,0.00014109,2]
[353371537,1739801488917,-2492.77,0.00014109,2]
[353371538,1739801488926,-1922.39,0.00014109,2]
[353371539,1739801488938,-716.09,0.00014109,2]
[353371540,1739801488949,-500.0,0.00014109,2]
[353371541,1739801488959,-2447.91,0.00014109,2]
[353371542,1739801488969,-1811.82,0.00014109,2]
[353371543,1739801488981,-500.0,0.00014109,2]
[353371544,1739801488992,-1621.19,0.00014109,2]
[353371545,1739801489001,-2234.88,0.00014109,2]
[353371546,1739801489011,-558.06,0.00014109,2]
[353371547,1739801489021,-500.77,0.00014109,2]
[353371548,1739801489031,-2154.46,0.00014109,2]
[353371549,1739801489040,-714.38,0.00014109,2]
[353371550,1739801489049,-3801.26,0.00014109,2]
[353371551,1739801489059,-2866.82,0.00014109,2]
[353371552,1739801489069,-542.39,0.00014109,2]
[353371553,1739801489078,-4526.39,0.00014109,2]
[353371554,1739801489087,-1995.28,0.00014109,2]
[353371555,1739801489098,-2877.66,0.00014109,2]
[353371556,1739801489108,-1428.61,0.00014109,2]
[353371557,1739801489117,-2559.61,0.00014109,2]
[353371558,1739801489126,-3065.09,0.00014109,2]
[353371559,1739801489136,-7282.2,0.00014109,2]
[353371560,1739801489146,-1200.0,0.00014109,2]
[353371561,1739801489156,-500.0,0.00014109,2]
[353371562,1739801489166,-1230.8,0.00014109,2]
[353371563,1739801489175,-500.0,0.00014109,2]
[353371564,1739801489186,-333.70601518,0.00014109,2]
[353371565,1739801489199,-1419.53398482,0.00014109,2]
[353371566,1739801489209,-2564.01,0.00014109,2]
[353371567,1739801489219,-2640.05,0.00014109,2]
[353371568,1739801489229,-287.86389955,0.00014109,2]
[353371569,1739801496199,158.1337,8.699e-05,2]
[353371570,1739801500272,517.3708,8.699e-05,2]
[353371571,1739801517267,2340.3501,8.256e-05,2]
[353371584,1739802461127,-300.0,8.835e-05,2]
[353371585,1739802461152,-8401.1765,8.836e-05,2]
[353371586,1739802461178,-6998.8235,8.836e-05,2]
[353371588,1739802515917,-19.6015,8.836e-05,2]
[353371602,1739802582687,-634.1154135,9e-05,2]
[353371603,1739802582711,-150.0,9.999e-05,2]
[353371604,1739802582735,-300.0,9.999e-05,2]
[353371605,1739802582761,-8896.2830865,0.0001,2]
[353371619,1739802632222,-150.0,9.999e-05,2]
[353371620,1739802632231,-244.20461645,0.0001,2]
[353371621,1739802632243,-2659.93197334,0.0001,2]
[353371622,1739802632425,-541.05884223,0.0001,2]
[353371623,1739802632437,-2584.6,0.0001,2]
[353371624,1739802632449,-1175.36385805,0.0001,2]
[353371625,1739802632476,-585.17802667,0.0001,2]
[353371626,1739802632488,-591.826501,0.0001,2]
[353371627,1739802632500,-3417.71609367,0.0001,2]
[353371628,1739802632512,-271.000002,0.0001,2]
[353371851,1739802638088,-13672.74986787,0.0001,2]
[353371857,1739802638273,-1174.12415546,0.0001,2]
[353371858,1739802638286,-790.6,0.0001,2]
[353371859,1739802638301,-20809.93560851,0.0001,2]
[353371861,1739802638397,-17229.98136953,0.0001,2]
[353371862,1739802638408,-550.0,0.0001,2]
[353371863,1739802638417,-665.71276693,0.0001,2]
[353371865,1739802638427,-454.08,0.00010137,2]
[353371867,1739802638436,-741.79,0.0001039,2]
[353371869,1739802638445,-508.44,0.00011154,2]
[353371871,1739802638455,-506.19,0.00011154,2]
[353371873,1739802638464,-491.57,0.00011154,2]
[353371875,1739802638474,-500.89,0.00011154,2]
[353371877,1739802638483,-496.66,0.00011154,2]
[353371879,1739802638492,-501.82,0.00011154,2]
[353371881,1739802638502,-508.75,0.00011154,2]
[353371883,1739802638511,-506.85,0.00011154,2]
[353371885,1739802638520,-503.48,0.00011154,2]
[353371887,1739802638530,-500.0,0.00011154,2]
[353371889,1739802638540,-500.0,0.00011154,2]
[353371891,1739802638549,-500.0,0.00011154,2]
[353371894,1739802638558,-530.48140024,0.0001132,2]
[353371897,1739802638567,-600.0,0.00012,2]
[353371899,1739802638576,-172.86,0.00012406,2]
[353371900,1739802638585,-250.0,0.00012471,2]
[353371904,1739802638595,-172.67,0.00012471,2]
[353371906,1739802638604,-500.0,0.00012524,2]
[353371909,1739802638613,-500.0,0.00012524,2]
[353371913,1739802638623,-150.0,0.00012526,2]
[353371914,1739802638632,-150.0,0.00012526,2]
[353371916,1739802638641,-154.91934717,0.00012526,2]
[353371918,1739802638650,-1000.0,0.00012648,2]
[353371920,1739802638659,-741.79,0.00012654,2]
[353371922,1739802638669,-268.28,0.00012696,2]
[353371924,1739802638678,-500.0,0.0001285,2]
[353371926,1739802638687,-774.73,0.0001326,2]
[353371928,1739802638696,-316.55513668,0.00013298,2]
[353371930,1739802638705,-622847.57259937,0.00013298,2]
[353371932,1739802638714,-943.6410597,0.000133,2]
[353371934,1739802638723,-159.79739725,0.00013398,2]
[353371936,1739802638732,-307.16484545,0.00013398,2]
[353371938,1739802638742,-178.21141416,0.00013399,2]
[353371940,1739802638751,-176.48052831,0.00013399,2]
[353371942,1739802638760,-500.0,0.00013399,2]
[353371944,1739802638770,-500.0,0.00013399,2]
[353371946,1739802638783,-491.59906394,0.00013399,2]
[353371948,1739802638794,-103087.09878236,0.000134,5]
[353372097,1739802640272,-2838.8612013,0.000134,5]
[353372100,1739802640284,-1935.39893144,0.000134,5]
[353372103,1739802640296,-2644.21531651,0.000134,5]
[353372105,1739802640309,-651.55721024,0.000134,5]
[353372107,1739802640321,-9308.80371147,0.000134,5]
[353372108,1739802640463,-551.6843175,0.000134,5]
[353372109,1739802640492,-332.9915373,0.000134,5]
[353372110,1739802640504,-666.110301,0.000134,5]
[353372111,1739802640516,-3096069.58869088,0.000134,5]
[353372112,1739802640526,-4497.30873303,0.000134,2]
[353372113,1739802640536,-164.78168626,0.000134,2]
[353372114,1739802640545,-1208.04065725,0.000134,2]
[353372115,1739802640554,-33901.69798617,0.000134,2]
[353372116,1739802640564,-307.16484542,0.00013436,2]
[353372117,1739802640573,-307.16484542,0.00013473,2]
[353372118,1739802640582,-4091.25966751,0.000135,2]
[353372119,1739802640592,-307.16484542,0.00013511,2]
[353372120,1739802640602,-582.838,0.00013511,2]
[353372121,1739802640611,-582.838,0.00013511,2]
[353372122,1739802640621,-582.838,0.00013511,2]
[353372123,1739802640631,-582.838,0.00013511,2]
[353372124,1739802640640,-582.838,0.00013511,2]
[353372125,1739802640650,-582.838,0.00013511,2]
[353372126,1739802640660,-582.838,0.00013511,2]
[353372127,1739802640670,-582.838,0.00013511,2]
[353372128,1739802640679,-582.838,0.00013511,2]
[353372130,1739802640688,-582.838,0.00013511,2]
[353372132,1739802640698,-307.16484542,0.00013548,2]
[353372134,1739802640707,-505.83,0.00013553,2]
[353372136,1739802640717,-498.14,0.00013585,2]
[353372138,1739802640727,-307.16484542,0.00013586,2]
[353372140,1739802640736,-1000.0,0.00013598,2]
[353372142,1739802640747,-1000.0,0.00013598,2]
[353372143,1739802640757,-1000.0,0.00013598,2]
[353372145,1739802640767,-569.4777537,0.00013598,2]
[353372146,1739802640776,-1606.59526283,0.00013598,2]
[353372147,1739802640785,-307.16484542,0.00013623,2]
[353372149,1739802640795,-26972.56958595,0.00013653,2]
[353372150,1739802640804,-307.16484542,0.00013661,2]
[353372151,1739802640814,-1606.59526276,0.0001368,2]
[353372152,1739802640823,-922.209,0.0001369,2]
[353372153,1739802640832,-150.0,0.00013697,2]
[353372154,1739802640842,-521.29905419,0.00013698,2]
[353372155,1739802640851,-500.0,0.00013698,2]
[353372156,1739802640860,-500.0,0.00013698,2]
[353372157,1739802640869,-269.68406347,0.00013698,2]
[353372158,1739802640879,-500.0,0.00013698,2]
[353372159,1739802640888,-455.1174836,0.00013698,2]
[353372160,1739802640897,-500.0,0.00013698,2]
[353372161,1739802640907,-500.0,0.00013698,2]
[353372162,1739802640916,-500.0,0.00013698,2]
[353372163,1739802640925,-500.0,0.00013698,2]
[353372164,1739802640935,-500.0,0.00013698,2]
[353372165,1739802640944,-500.0,0.00013698,2]
[353372166,1739802640954,-500.0,0.00013698,2]
[353372167,1739802640963,-503.17258358,0.00013698,2]
[353372168,1739802640973,-497.97572583,0.00013698,2]
[353372169,1739802640983,-642.66286372,0.00013698,2]
[353372170,1739802640992,-500.0,0.00013698,2]
[353372171,1739802641004,-500.0,0.00013698,2]
[353372172,1739802641013,-500.0,0.00013698,2]
[353372173,1739802641022,-1059.506449,0.00013698,2]
[353372174,1739802641032,-1149.288711,0.00013698,2]
[353372175,1739802641041,-156.718981,0.00013698,2]
[353372176,1739802641051,-151.472394,0.00013698,2]
[353372177,1739802641061,-153.62015,0.00013698,2]
[353372178,1739802641070,-500.0,0.00013698,2]
[353372179,1739802641079,-500.0,0.00013698,2]
[353372180,1739802641090,-500.0,0.00013698,2]
[353372181,1739802641100,-500.0,0.00013698,2]
[353372182,1739802641110,-500.0,0.00013698,2]
[353372183,1739802641120,-151.472388,0.00013698,2]
[353372184,1739802641130,-500.0,0.00013698,2]
[353372185,1739802641140,-500.0,0.00013698,2]
[353372186,1739802641150,-500.0,0.00013698,2]
[353372187,1739802641161,-500.0,0.00013698,2]
[353372188,1739802641171,-153.620143,0.00013698,2]
[353372189,1739802641181,-500.0,0.00013698,2]
[353372190,1739802641190,-500.0,0.00013698,2]
[353372191,1739802641200,-500.0,0.00013698,2]
[353372192,1739802641210,-500.0,0.00013698,2]
[353372193,1739802641219,-500.0,0.00013698,2]
[353372194,1739802641229,-388.52231726,0.00013698,2]
[353372195,1739802641239,-500.0,0.00013698,2]
[353372196,1739802641248,-500.0,0.00013698,2]
[353372197,1739802641258,-500.0,0.00013698,2]
[353372198,1739802641271,-500.0,0.00013698,2]
[353372199,1739802641280,-500.0,0.00013698,2]
[353372200,1739802641290,-500.0,0.00013698,2]
[353372201,1739802641299,-160.96013238,0.00013698,2]
[353372202,1739802641308,-500.0,0.00013698,2]
[353372203,1739802641318,-500.0,0.00013698,2]
[353372204,1739802641327,-500.0,0.00013698,2]
[353372205,1739802641336,-500.0,0.00013698,2]
[353372206,1739802641347,-500.0,0.00013698,2]
[353372207,1739802641357,-552.64,0.00013698,2]
[353372208,1739802641367,-516.97,0.00013698,2]
[353372209,1739802641376,-500.0,0.00013698,2]
[353372210,1739802641385,-500.0,0.00013698,2]
[353372211,1739802641395,-500.0,0.00013698,2]
[353372212,1739802641405,-500.0,0.00013698,2]
[353372213,1739802641414,-500.0,0.00013698,2]
[353372214,1739802641424,-500.0,0.00013698,2]
[353372215,1739802641434,-500.0,0.00013698,2]
[353372216,1739802641443,-500.0,0.00013698,2]
[353372217,1739802641452,-500.0,0.00013698,2]
[353372218,1739802641462,-467.28939658,0.00013698,2]
[353372219,1739802641471,-500.0,0.00013698,2]
[353372220,1739802641481,-500.0,0.00013698,2]
[353372221,1739802641490,-500.0,0.00013698,2]
[353372222,1739802641499,-531.14552895,0.00013698,2]
[353372223,1739802641511,-500.0,0.00013698,2]
[353372224,1739802641520,-500.0,0.00013698,2]
[353372225,1739802641530,-500.0,0.00013698,2]
[353372226,1739802641539,-279.92650907,0.00013698,2]
[353372227,1739802641549,-500.0,0.00013698,2]
[353372228,1739802641558,-500.0,0.00013698,2]
[353372229,1739802641568,-500.0,0.00013698,2]
[353372230,1739802641577,-1075.74,0.00013698,2]
[353372231,1739802641586,-500.0,0.00013698,2]
[353372232,1739802641596,-500.0,0.00013698,2]
[353372233,1739802641605,-805.75,0.00013698,2]
[353372234,1739802641614,-500.0,0.00013698,2]
[353372235,1739802641623,-809.02,0.00013698,2]
[353372236,1739802641633,-1406.7,0.00013698,2]
[353372237,1739802641642,-500.0,0.00013698,2]
[353372238,1739802641651,-500.0,0.00013698,2]
[353372239,1739802641661,-1255.87,0.00013698,2]
[353372240,1739802641671,-500.0,0.00013698,2]
[353372241,1739802641680,-1205.98,0.00013698,2]
[353372242,1739802641688,-500.0,0.00013698,2]
[353372243,1739802641698,-500.0,0.00013698,2]
[353372244,1739802641707,-500.0,0.00013698,2]
[353372245,1739802641716,-500.0,0.00013698,2]
[353372246,1739802641725,-1098.65,0.00013698,2]
[353372247,1739802641735,-592.01,0.00013698,2]
[353372248,1739802641744,-712.98,0.00013698,2]
[353372249,1739802641752,-500.0,0.00013698,2]
[353372250,1739802641762,-500.0,0.00013698,2]
[353372251,1739802641771,-500.0,0.00013698,2]
[353372252,1739802641780,-833.05,0.00013698,2]
[353372253,1739802641790,-1035.8,0.00013698,2]
[353372254,1739802641798,-500.0,0.00013698,2]
[353372255,1739802641808,-500.0,0.00013698,2]
[353372256,1739802641817,-500.0,0.00013698,2]
[353372257,1739802641827,-500.0,0.00013698,2]
[353372258,1739802641836,-916.12,0.00013698,2]
[353372259,1739802641846,-500.0,0.00013698,2]
[353372260,1739802641855,-709.95,0.00013698,2]
[353372261,1739802641864,-500.0,0.00013698,2]
[353372262,1739802641873,-824.61,0.00013698,2]
[353372263,1739802641882,-650.35,0.00013698,2]
[353372264,1739802641891,-583.09,0.00013698,2]
[353372265,1739802641900,-1183.02,0.00013698,2]
[353372266,1739802641911,-500.0,0.00013698,2]
[353372267,1739802641920,-500.0,0.00013698,2]
[353372268,1739802641930,-551.8,0.00013698,2]
[353372269,1739802641939,-500.0,0.00013698,2]
[353372270,1739802641948,-500.0,0.00013698,2]
[353372271,1739802641957,-1178.64,0.00013698,2]
[353372272,1739802641966,-500.0,0.00013698,2]
[353372273,1739802641975,-868.28,0.00013698,2]
[353372274,1739802641985,-500.0,0.00013698,2]
[353372275,1739802641994,-586.47,0.00013698,2]
[353372276,1739802642003,-500.0,0.00013698,2]
[353372277,1739802642012,-1113.4,0.00013698,2]
[353372278,1739802642021,-616.86,0.00013698,2]
[353372279,1739802642030,-711.68,0.00013698,2]
[353372280,1739802642040,-776.8,0.00013698,2]
[353372281,1739802642049,-701.89,0.00013698,2]
[353372282,1739802642058,-500.0,0.00013698,2]
[353372283,1739802642067,-671.96,0.00013698,2]
[353372284,1739802642076,-529.14,0.00013698,2]
[353372285,1739802642085,-677.57,0.00013698,2]
[353372286,1739802642094,-500.0,0.00013698,2]
[353372287,1739802642103,-1014.43,0.00013698,2]
[353372288,1739802642112,-500.0,0.00013698,2]
[353372289,1739802642121,-500.0,0.00013698,2]
[353372290,1739802642131,-1182.69,0.00013698,2]
[353372291,1739802642140,-500.0,0.00013698,2]
[353372292,1739802642149,-500.0,0.00013698,2]
[353372293,1739802642159,-500.0,0.00013698,2]
[353372294,1739802642168,-786.79,0.00013698,2]
[353372295,1739802642177,-536.79992226,0.00013698,2]
[353372296,1739802642186,-573.72,0.00013698,2]
[353372297,1739802642195,-987.55,0.00013698,2]
[353372298,1739802642205,-500.0,0.00013698,2]
[353372299,1739802642214,-1027.68,0.00013698,2]
[353372300,1739802642224,-500.0,0.00013698,2]
[353372301,1739802642233,-500.0,0.00013698,2]
[353372302,1739802642242,-500.0,0.00013698,2]
[353372303,1739802642252,-500.0,0.00013698,2]
[353372304,1739802642262,-500.0,0.00013698,2]
[353372305,1739802642274,-800.51,0.00013698,2]
[353372306,1739802642284,-500.0,0.00013698,2]
[353372307,1739802642293,-500.0,0.00013698,2]
[353372308,1739802642302,-1207.43,0.00013698,2]
[353372309,1739802642314,-500.0,0.00013698,2]
[353372310,1739802642323,-500.0,0.00013698,2]
[353372311,1739802642331,-500.0,0.00013698,2]
[353372312,1739802642344,-947.39,0.00013698,2]
[353372313,1739802642354,-500.0,0.00013698,2]
[353372314,1739802642363,-500.0,0.00013698,2]
[353372315,1739802642373,-500.0,0.00013698,2]
[353372316,1739802642383,-500.0,0.00013698,2]
[353372317,1739802642391,-546.96336271,0.00013698,2]
[353372318,1739802642401,-500.0,0.00013698,2]
[353372319,1739802642413,-500.0,0.00013698,2]
[353372320,1739802642422,-500.0,0.00013698,2]
[353372321,1739802642433,-1371.61,0.00013698,2]
[353372322,1739802642442,-500.0,0.00013698,2]
[353372323,1739802642451,-500.0,0.00013698,2]
[353372324,1739802642460,-500.0,0.00013698,2]
[353372325,1739802642469,-647.0,0.00013698,2]
[353372326,1739802642478,-501.98235384,0.00013698,2]
[353372327,1739802642487,-790.54,0.00013698,2]
[353372328,1739802642497,-542.19,0.00013698,2]
[353372329,1739802642506,-500.0,0.00013698,2]
[353372330,1739802642515,-994.9,0.00013698,2]
[353372331,1739802642524,-500.0,0.00013698,2]
[353372332,1739802642534,-500.0,0.00013698,2]
[353372333,1739802642543,-500.0,0.00013698,2]
[353372334,1739802642552,-500.0,0.00013698,2]
[353372335,1739802642562,-500.0,0.00013698,2]
[353372336,1739802642571,-500.0,0.00013698,2]
[353372337,1739802642580,-761.92,0.00013698,2]
[353372338,1739802642795,-700.11,0.00013698,2]
[353372339,1739802642810,-1187.84,0.00013698,2]
[353372340,1739802642820,-1040.89,0.00013698,2]
[353372341,1739802642829,-500.0,0.00013698,2]
[353372342,1739802642839,-500.0,0.00013698,2]
[353372343,1739802642848,-706.34,0.00013698,2]
[353372344,1739802642857,-503.29861105,0.00013698,2]
[353372345,1739802642867,-1191.81,0.00013698,2]
[353372346,1739802642876,-500.0,0.00013698,2]
[353372347,1739802642885,-500.0,0.00013698,2]
[353372348,1739802642894,-587.98,0.00013698,2]
[353372349,1739802642903,-500.0,0.00013698,2]
[353372350,1739802642915,-500.0,0.00013698,2]
[353372351,1739802642925,-702.35,0.00013698,2]
[353372352,1739802642934,-511.25318004,0.00013698,2]
[353372353,1739802642943,-500.0,0.00013698,2]
[353372354,1739802642952,-500.0,0.00013698,2]
[353372355,1739802642962,-500.0,0.00013698,2]
[353372356,1739802642971,-500.0,0.00013698,2]
[353372357,1739802642980,-500.0,0.00013698,2]
[353372358,1739802642989,-1341.54,0.00013698,2]
[353372359,1739802642998,-643.67,0.00013698,2]
[353372360,1739802643007,-518.34,0.00013698,2]
[353372361,1739802643017,-576.55,0.00013698,2]
[353372362,1739802643026,-816.99,0.00013698,2]
[353372363,1739802643035,-500.0,0.00013698,2]
[353372364,1739802643044,-785.73,0.00013698,2]
[353372365,1739802643054,-500.0,0.00013698,2]
[353372367,1739802643063,-1737.15,0.00013698,2]
[353372369,1739802643072,-749.68,0.00013698,2]
[353372371,1739802643082,-500.0,0.00013698,2]
[353372372,1739802643091,-603.15176436,0.00013698,2]
[353372373,1739802643100,-1104.88,0.00013698,2]
[353372374,1739802643110,-780.9,0.00013698,2]
[353372375,1739802643119,-502.93494386,0.00013698,2]
[353372376,1739802643129,-500.0,0.00013698,2]
[353372377,1739802643138,-500.0,0.00013698,2]
[353372378,1739802643148,-1262.18,0.00013698,2]
[353372379,1739802643159,-500.0,0.00013698,2]
[353372380,1739802643168,-1281.34,0.00013698,2]
[353372381,1739802643177,-624.66,0.00013698,2]
[353372382,1739802643187,-500.0,0.00013698,2]
[353372383,1739802643196,-500.0,0.00013698,2]
[353372384,1739802643205,-835.57,0.00013698,2]
[353372385,1739802643214,-714.38,0.00013698,2]
[353372386,1739802643224,-500.0,0.00013698,2]
[353372387,1739802643233,-502.99944854,0.00013698,2]
[353372388,1739802643243,-500.0,0.00013698,2]
[353372389,1739802643252,-1003.47,0.00013698,2]
[353372390,1739802643262,-1095.31,0.00013698,2]
[353372391,1739802643273,-1308.63,0.00013698,2]
[353372392,1739802643283,-500.0,0.00013698,2]
[353372393,1739802643292,-1246.11,0.00013698,2]
[353372394,1739802643301,-500.0,0.00013698,2]
[353372395,1739802643311,-500.0,0.00013698,2]
[353372396,1739802643320,-500.0,0.00013698,2]
[353372397,1739802643329,-515.63134067,0.00013698,2]
[353372398,1739802643339,-677.47,0.00013698,2]
[353372399,1739802643349,-663.42,0.00013698,2]
[353372400,1739802643358,-740.85,0.00013698,2]
[353372401,1739802643367,-753.71,0.00013698,2]
[353372402,1739802643377,-500.0,0.00013698,2]
[353372403,1739802643386,-784.77,0.00013698,2]
[353372404,1739802643395,-1300.99,0.00013698,2]
[353372405,1739802643406,-1254.66,0.00013698,2]
[353372406,1739802643415,-500.0,0.00013698,2]
[353372407,1739802643425,-623.24,0.00013698,2]
[353372408,1739802643434,-500.0,0.00013698,2]
[353372409,1739802643444,-500.0,0.00013698,2]
[353372410,1739802643454,-500.0,0.00013698,2]
[353372411,1739802643463,-500.0,0.00013698,2]
[353372412,1739802643472,-500.0,0.00013698,2]
[353372413,1739802643481,-500.0,0.00013698,2]
[353372414,1739802643490,-500.0,0.00013698,2]
[353372415,1739802643500,-208.20127827,0.00013698,2]
[353372417,1739802643550,-291.79872173,0.00013698,2]
[353372418,1739802643559,-500.0,0.00013698,2]
[353372419,1739802643568,-500.0,0.00013698,2]
[353372420,1739802643577,-584.33074848,0.00013698,2]
[353372421,1739802643587,-500.0,0.00013698,2]
[353372422,1739802643596,-1710.43,0.00013698,2]
[353372423,1739802643604,-500.0,0.00013698,2]
[353372424,1739802643614,-504.49332636,0.00013698,2]
[353372425,1739802643623,-254.91259575,0.00013698,2]
[353372431,1739802643906,-245.08740425,0.00013698,2]
[353372432,1739802643916,-500.0,0.00013698,2]
[353372433,1739802643925,-1228.65,0.00013698,2]
[353372434,1739802643934,-540.39,0.00013698,2]
[353372435,1739802643943,-500.0,0.00013698,2]
[353372436,1739802643952,-1240.8,0.00013698,2]
[353372437,1739802643961,-500.0,0.00013698,2]
[353372438,1739802643970,-2588.41,0.00013698,2]
[353372439,1739802643979,-500.0,0.00013698,2]
[353372440,1739802643988,-626.92,0.00013698,2]
[353372441,1739802643997,-854.91,0.00013698,2]
[353372442,1739802644006,-1184.48,0.00013698,2]
[353372443,1739802644016,-679.94,0.00013698,2]
[353372444,1739802644025,-1166.13,0.00013698,2]
[353372445,1739802644034,-543.88,0.00013698,2]
[353372446,1739802644043,-539.21512011,0.00013698,2]
[353372447,1739802644052,-500.0,0.00013698,2]
[353372448,1739802644062,-500.0,0.00013698,2]
[353372449,1739802644071,-922.37,0.00013698,2]
[353372450,1739802644080,-500.0,0.00013698,2]
[353372451,1739802644089,-500.0,0.00013698,2]
[353372452,1739802644099,-500.0,0.00013698,2]
[353372453,1739802644108,-746.21,0.00013698,2]
[353372454,1739802644117,-500.0,0.00013698,2]
[353372455,1739802644127,-552.39130321,0.00013698,2]
[353372456,1739802644136,-878.89,0.00013698,2]
[353372457,1739802644145,-549.32,0.00013698,2]
[353372458,1739802644156,-1193.57,0.00013698,2]
[353372459,1739802644166,-537.06,0.00013698,2]
[353372460,1739802644175,-500.0,0.00013698,2]
[353372461,1739802644184,-500.0,0.00013698,2]
[353372462,1739802644193,-500.0,0.00013698,2]
[353372463,1739802644202,-1276.53,0.00013698,2]
[353372464,1739802644211,-1500.26,0.00013698,2]
[353372465,1739802644220,-1224.26,0.00013698,2]
[353372466,1739802644230,-1968.77,0.00013698,2]
[353372467,1739802644239,-936.31,0.00013698,2]
[353372468,1739802644248,-506.71582122,0.00013698,2]
[353372469,1739802644258,-923.1,0.00013698,2]
[353372470,1739802644272,-1821.42,0.00013698,2]
[353372471,1739802644281,-500.0,0.00013698,2]
[353372472,1739802644290,-953.55,0.00013698,2]
[353372473,1739802644299,-500.0,0.00013698,2]
[353372474,1739802644310,-629.74,0.00013698,2]
[353372475,1739802644319,-500.0,0.00013698,2]
[353372476,1739802644328,-1925.9,0.00013698,2]
[353372477,1739802644338,-1373.77,0.00013698,2]
[353372478,1739802644348,-777.15,0.00013698,2]
[353372479,1739802644358,-1360.86,0.00013698,2]
[353372480,1739802644367,-1721.16,0.00013698,2]
[353372481,1739802644377,-597.01,0.00013698,2]
[353372482,1739802644386,-500.0,0.00013698,2]
[353372483,1739802644395,-500.0,0.00013698,2]
[353372484,1739802644404,-2856.92,0.00013698,2]
[353372485,1739802644414,-500.0,0.00013698,2]
[353372486,1739802644424,-1221.23,0.00013698,2]
[353372487,1739802644433,-582.92,0.00013698,2]
[353372488,1739802644444,-1655.27,0.00013698,2]
[353372489,1739802644452,-500.0,0.00013698,2]
[353372490,1739802644461,-998.85,0.00013698,2]
[353372491,1739802644470,-251.50013684,0.00013698,2]
[353372492,1739802644479,-1320.03,0.00013698,2]
[353372493,1739802644489,-500.0,0.00013698,2]
[353372494,1739802644498,-1101.88,0.00013698,2]
[353372495,1739802644507,-1781.48,0.00013698,2]
[353372496,1739802644516,-1532.18,0.00013698,2]
[353372497,1739802644525,-1278.39,0.00013698,2]
[353372498,1739802644535,-500.0,0.00013698,2]
[353372499,1739802644544,-709.02,0.00013698,2]
[353372500,1739802644553,-1582.08,0.00013698,2]
[353372501,1739802644563,-1622.86,0.00013698,2]
[353372502,1739802644572,-3706.0,0.00013698,2]
[353372503,1739802644582,-1690.48,0.00013698,2]
[353372504,1739802644591,-855.83,0.00013698,2]
[353372505,1739802644600,-525.76,0.00013698,2]
[353372506,1739802644610,-1957.36,0.00013698,2]
[353372507,1739802644619,-3569.51,0.00013698,2]
[353372508,1739802644628,-566.98,0.00013698,2]
[353372509,1739802644637,-672.57,0.00013698,2]
[353372510,1739802644647,-2378.92,0.00013698,2]
[353372511,1739802644657,-500.0,0.00013698,2]
[353372512,1739802644667,-2289.35,0.00013698,2]
[353372513,1739802644675,-500.0,0.00013698,2]
[353372514,1739802644684,-2954.12,0.00013698,2]
[353372515,1739802644693,-1186.98,0.00013698,2]
[353372516,1739802644702,-1677.48,0.00013698,2]
[353372517,1739802644712,-2013.13,0.00013698,2]